bitfinex-derivatives/quotes_SOLF0:USTF0_20250320
["timestamp","ask_amount","ask_price","bid_price","bid_amount"]
[1742452749129,7.50844158,134.09,134.07,2.55140416]
[1742452750326,0.05074158,134.09,134.07,2.55140416]
[1742452750932,10.94585523,134.09,134.07,2.55140416]
[1742452752035,7.458,134.08,134.07,2.55140416]
[1742452752236,18.35311365,134.08,134.07,2.55140416]
[1742452753744,18.35311365,134.08,134.07,4.16e-06]
[1742452754035,10.89511365,134.08,134.04,2.89030697]
[1742452754234,272.33074158,134.09,134.04,6.97e-06]
[1742452754235,10.89511365,134.05,134.04,6.97e-06]
[1742452754828,10.89511365,134.05,134.03,1.24e-05]
[1742452755029,10.89511365,134.04,134.02,1.58903103]
[1742452755236,10.89511365,134.03,134.02,1.58903103]
[1742452755637,18.35591365,134.03,134.02,1.58903103]
[1742452756939,10.89511365,134.03,134.02,1.58903103]
[1742452757438,37.03511365,134.03,134.02,1.58903103]
[1742452758037,37.03511365,134.03,134.01,3.27186294]
[1742452758242,10.89511365,134.02,134.01,3.27186294]
[1742452759541,18.35701365,134.02,134.0,3.34731406]
[1742452759839,10.89511365,134.01,133.94,18.36081365]
[1742452760040,10.89511365,133.96,133.94,26.14]
[1742452760240,10.89511365,133.96,133.93,7.4657]
[1742452760746,10.94533538,133.96,133.93,7.4657]
[1742452761245,10.94533538,133.96,133.93,3.696]
[1742452761640,0.05022173,133.96,133.93,14.59111365]
[1742452761942,0.05022173,133.96,133.94,10.89511365]
[1742452762243,0.05022173,133.96,133.93,14.59111365]
[1742452762438,10.89511365,133.95,133.92,41.17278863]
[1742452762632,10.89511365,133.94,133.92,41.17278863]
[1742452762833,10.89511365,133.93,133.92,41.17278863]
[1742452763337,37.08533538,133.96,133.92,10.89511365]
[1742452763534,0.05022173,133.96,133.94,10.89511365]
[1742452763938,0.05022173,133.96,133.95,7.4653]
[1742452764139,0.05022173,133.96,133.94,10.89511365]
[1742452764945,0.05022173,133.96,133.95,18.36041365]
[1742452765744,10.89511365,134.0,133.95,10.89511365]
[1742452766045,10.89511365,134.0,133.96,26.16]
[1742452766348,10.89511365,134.0,133.97,7.4638]
[1742452767048,10.94898197,134.0,133.97,7.51239207]
[1742452767244,10.94898197,134.0,133.98,7.4636]
[1742452767448,0.05386832,134.0,133.98,7.4636]
[1742452768648,0.05386832,134.0,133.99,7.463]
[1742452769149,0.05386832,134.0,133.99,18.35811365]
[1742452769649,0.05386832,134.0,133.99,10.89511365]
[1742452769944,0.05386832,134.0,133.99,18.35811365]
[1742452771549,0.05386832,134.0,133.99,10.89511365]
[1742452772641,0.05386832,134.0,133.98,18.35851365]
[1742452772842,10.89511365,133.99,133.97,0.04859207]
[1742452773047,10.89511365,133.98,133.97,0.04859207]
[1742452773448,18.35871365,133.98,133.97,0.04859207]
[1742452775148,37.05511365,133.98,133.92,10.89511365]
[1742452775346,10.89511365,133.95,133.91,37.05511365]
[1742452775651,10.89511365,133.95,133.91,26.16]
[1742452775852,18.36041365,133.95,133.91,37.05511365]
[1742452776152,10.89511365,133.97,133.93,10.89511365]
[1742452776451,29.8255,134.0,133.94,26.2]
[1742452776452,10.89511365,133.96,133.94,26.2]
[1742452776650,10.94371418,133.96,133.93,26.2]
[1742452776851,18.40861418,133.96,133.93,26.2]
[1742452777353,7.4654,133.95,133.93,26.2]
[1742452778253,18.36051365,133.95,133.93,26.2]
[1742452778767,18.40861418,133.96,133.93,26.2]
[1742452779156,10.89511365,133.95,133.93,26.2]
[1742452779364,7.4658,133.94,133.93,26.2]
[1742452779566,10.89511365,133.95,133.93,26.2]
[1742452780064,10.89511365,133.94,133.9,10.9241]
[1742452780262,26.28860053,133.96,133.9,10.9241]
[1742452780263,10.89511365,133.93,133.9,29.9496]
[1742452780462,10.89511365,133.93,133.9,26.24]
[1742452780664,18.41064473,133.93,133.9,26.24]
[1742452780865,10.94394473,133.93,133.89,26.26]
[1742452781160,10.89511365,133.92,133.88,10.89511365]
[1742452781371,0.04883108,133.93,133.88,10.89511365]
[1742452781372,10.89511365,133.91,133.88,26.42]
[1742452781566,10.89511365,133.92,133.88,37.31511365]
[1742452781761,10.89511365,133.92,133.89,7.4685]
[1742452783074,10.89511365,133.92,133.88,26.48]
[1742452783367,10.89511365,133.92,133.88,37.37511365]
[1742452784169,10.89511365,133.92,133.9,7.4678]
[1742452784371,10.94394473,133.93,133.88,37.37511365]
[1742452785065,18.41044473,133.93,133.9,7.4679]
[1742452785872,18.41044473,133.93,133.89,33.9284]
[1742452786971,7.467,133.92,133.89,33.9284]
[1742452787174,18.36211365,133.92,133.89,26.46]
[1742452787474,10.89511365,133.92,133.89,26.46]
[1742452787874,10.89511365,133.92,133.89,33.9286]
[1742452788169,18.36241365,133.92,133.89,33.9286]
[1742452788476,10.89511365,133.92,133.89,33.9286]
[1742452788676,10.89511365,133.92,133.89,26.46]
[1742452788871,10.94394473,133.93,133.89,37.35511365]
[1742452789076,10.94394473,133.93,133.9,7.4677]
[1742452789274,18.41074473,133.93,133.89,37.35511365]
[1742452789476,10.89511365,133.92,133.89,26.46]
[1742452789674,10.89511365,133.91,133.87,10.89511365]
[1742452789876,7.4681,133.9,133.88,26.46]
[1742452790077,0.04883108,133.93,133.88,37.35511365]
[1742452790270,10.94394473,133.93,133.88,44.82401365]
[1742452790471,7.4673,133.92,133.88,44.82401365]
[1742452790978,10.94394473,133.93,133.89,7.4681]
[1742452791179,18.41054473,133.93,133.89,7.4681]
[1742452791470,10.89511365,133.92,133.88,26.46]
[1742452791676,10.89511365,133.91,133.88,26.46]
[1742452792266,7.4684,133.9,133.88,26.46]
[1742452792472,10.89511365,133.91,133.88,26.46]
[1742452792776,18.36211365,133.92,133.88,26.46]
[1742452792978,37.38394473,133.93,133.88,37.35511365]
[1742452793178,10.94394473,133.93,133.89,18.36331365]
[1742452793378,18.41054473,133.93,133.89,18.36331365]
[1742452793577,18.41054473,133.93,133.9,7.468]
[1742452794681,10.94394473,133.93,133.9,7.468]
[1742452794878,0.04883108,133.93,133.9,10.89511365]
[1742452795076,0.04883108,133.93,133.91,37.33511365]
[1742452795380,0.04883108,133.93,133.92,10.89511365]
[1742452795576,283.69511365,133.97,133.92,10.89511365]
[1742452795776,257.23511365,133.97,133.93,10.89511365]
[1742452795978,257.23511365,133.97,133.94,7.4654]
[1742452796180,264.69961365,133.97,133.94,7.4654]
[1742452796775,264.69961365,133.97,133.94,7.51586074]
[1742452796983,264.75159096,133.97,133.94,7.51586074]
[1742452797677,257.28709096,133.97,133.95,7.4653]
[1742452797877,0.05197731,133.97,133.95,7.4653]
[1742452798478,10.94709096,133.97,133.94,26.49046074]
[1742452799083,18.41139096,133.97,133.94,33.95616074]
[1742452799279,10.94709096,133.97,133.94,33.95616074]
[1742452799477,0.05197731,133.97,133.94,26.49046074]
[1742452799677,0.05197731,133.97,133.94,33.95596074]
[1742452800074,10.89511365,133.95,133.94,26.49046074]
[1742452800273,10.89511365,133.95,133.94,0.05046074]
[1742452800475,18.36041365,133.95,133.94,0.05046074]
[1742452801278,10.89511365,133.95,133.87,41.17278863]
[1742452801478,10.89511365,133.89,133.87,41.17278863]
[1742452801882,10.89511365,133.9,133.87,41.17278863]
[1742452802585,10.89511365,133.94,133.92,7.4669]
[1742452802878,10.89511365,133.95,133.92,7.4669]
[1742452803082,257.29511365,133.96,133.91,37.83511365]
[1742452803777,0.0531845,133.95,133.93,10.89511365]
[1742452803977,0.0531845,133.95,133.94,27.0]
[1742452804880,0.0531845,133.95,133.94,34.4658]
[1742452808480,263.25447907,134.01,133.94,51.31447907]
[1742452808684,246.4,134.01,133.94,43.85447907]
[1742452808986,253.8622,134.01,133.97,7.4638]
[1742452809185,253.8622,134.01,133.98,27.0]
[1742452809685,7.4627,134.0,133.98,27.04984415]
[1742452810987,7.463,133.99,133.98,27.04984415]
[1742452812088,7.4627,134.0,133.98,27.04984415]
[1742452814589,7.463,133.99,133.98,27.04984415]
[1742452819285,7.463,133.99,133.98,0.04984415]
[1742452819592,24.31747907,133.99,133.98,0.04984415]
[1742452821190,24.31747907,133.99,133.98,4.415e-05]
[1742452821400,7.4658,133.94,133.93,27.28]
[1742452821593,16.85447907,133.99,133.93,27.28]
[1742452821891,7.4658,133.94,133.93,27.28]
[1742452822094,16.85447907,133.99,133.93,27.28]
[1742452822394,0.0476492,133.97,133.95,0.05195395]
[1742452822692,16.85447907,134.03,133.96,27.42]
[1742452823288,16.85447907,134.03,133.96,44.27447907]
[1742452823888,0.05648774,134.01,133.98,0.05726866]
[1742452824386,7.51868774,134.01,133.98,7.52046866]
[1742452824691,0.05648774,134.01,133.98,0.05726866]
[1742452824889,7.4628,134.0,133.98,0.05726866]
[1742452825387,0.05648774,134.01,133.98,0.05726866]
[1742452825388,7.51868774,134.01,133.98,0.05726866]
[1742452825896,7.4627,134.0,133.98,0.05726866]
[1742452826191,0.05648774,134.01,133.98,7.52066866]
[1742452826491,7.51888774,134.01,133.98,0.05726866]
[1742452827383,7.51888774,134.01,133.98,7.52086866]
[1742452828184,7.4627,134.0,133.98,0.05726866]
[1742452828392,0.05648774,134.01,133.98,0.05726866]
[1742452828989,7.51868774,134.01,133.98,7.52076866]
[1742452829190,0.05648774,134.01,133.99,27.36]
[1742452829696,0.05648774,134.01,133.99,34.8227]
[1742452830396,246.34,134.06,133.99,27.36]
[1742452831097,7.4606,134.04,133.99,27.36]
[1742452831598,0.05710511,134.03,134.0,7.51380191]
[1742452831794,0.05710511,134.03,134.0,0.05160191]
[1742452832192,0.05710511,134.03,134.0,16.90608098]
[1742452832394,0.05710511,134.03,134.0,0.05160191]
[1742452833301,0.05710511,134.03,134.0,7.51380191]
[1742452833997,0.05710511,134.03,134.0,0.05160191]
[1742452834687,7.51820511,134.03,134.0,0.05160191]
[1742452834997,0.05710511,134.03,134.0,0.05160191]
[1742452835199,16.91158418,134.03,134.0,0.05160191]
[1742452835899,7.4619,134.01,134.0,0.05160191]
[1742452841205,16.91158418,134.03,134.0,0.05160191]
[1742452841705,7.4619,134.01,134.0,0.05160191]
[1742452843109,7.4616,134.02,134.0,0.05160191]
[1742452843509,0.05710511,134.03,134.0,0.05160191]
[1742452844411,7.51820511,134.03,134.0,0.05160191]
[1742452844606,0.05710511,134.03,134.0,0.05160191]
[1742452846607,0.05710511,134.03,134.01,7.4616]
[1742452847210,0.05710511,134.03,134.01,18.23553518]
[1742452848514,0.05710511,134.03,134.01,10.77393518]
[1742452848709,0.05710511,134.03,134.0,0.05160191]
[1742452849513,7.4614,134.02,134.0,0.05160191]
[1742452850713,7.51820511,134.03,134.0,7.51410191]
[1742452852811,7.51820511,134.03,134.0,0.05160191]
[1742452853017,7.4615,134.02,134.0,0.05160191]
[1742452855122,0.05710511,134.03,134.0,0.05160191]
[1742452855713,7.4619,134.01,134.0,0.05160191]
[1742452856012,0.05710511,134.03,134.0,0.05160191]
[1742452856217,7.4616,134.02,134.0,0.05160191]
[1742452856417,0.05710511,134.03,134.0,0.05160191]
[1742452856616,0.05710511,134.03,134.0,7.51400191]
[1742452856816,7.4614,134.02,134.0,0.05160191]
[1742452857420,0.05710511,134.03,134.0,0.05160191]
[1742452858215,0.05710511,134.03,134.01,7.4619]
[1742452858416,0.05710511,134.03,134.02,27.2]
[1742452859520,0.05710511,134.03,134.02,34.6614]
[1742452860719,34.4243,134.09,134.05,7.4593]
[1742452860921,41.8819,134.09,134.05,7.4593]
[1742452861119,7.2643,134.09,134.02,27.2]
[1742452861320,7.2643,134.09,134.06,7.4587]
[1742452861813,7.2643,134.09,134.07,7.4582]
[1742452862024,7.31944897,134.09,134.06,0.05721213]
[1742452862430,3.68814897,134.09,134.07,7.4584]
[1742452862722,0.05514897,134.09,134.07,7.4584]
[1742452862927,0.05514897,134.09,134.07,7.4582]
[1742452863118,0.05514897,134.09,134.06,0.05721213]
[1742452863623,0.05514897,134.09,134.06,7.51611213]
[1742452864622,0.05514897,134.09,134.07,7.4586]
[1742452865426,0.05514897,134.09,134.06,0.05721213]
[1742452866227,7.51274897,134.09,134.06,0.05721213]
[1742452867025,16.83789516,134.08,134.06,0.05721213]
[1742452867430,24.43219516,134.08,134.06,0.05721213]
[1742452867622,24.43219516,134.08,134.03,27.16]
[1742452867821,16.83789516,134.06,134.01,27.16]
[1742452868018,7.4607,134.04,134.01,27.16]
[1742452868223,16.83789516,134.06,134.01,27.16]
[1742452868826,0.05148437,134.05,134.02,0.05390907]
[1742452869218,7.4608,134.03,134.02,0.05390907]
[1742452873636,7.4605,134.04,134.02,0.05390907]
[1742452874927,0.05148437,134.05,134.02,0.05390907]
[1742452875134,0.05148437,134.05,134.02,10.82612799]
[1742452875829,0.05148437,134.05,134.03,37.91221892]
[1742452876327,0.05148437,134.05,134.04,18.23251892]
[1742452877132,0.05148437,134.05,134.03,34.6006]
[1742452878031,0.05148437,134.05,134.03,27.14]
[1742452879135,7.51158437,134.05,134.03,27.14]
[1742452879337,16.82660638,134.04,134.02,0.05390907]
[1742452880738,24.28730638,134.04,134.02,0.05390907]
[1742452880929,16.82660638,134.04,134.02,0.05390907]
[1742452881431,7.4608,134.03,134.02,0.05390907]
[1742452882734,27.17148437,134.05,134.02,43.98051545]
[1742452882735,0.05148437,134.05,134.02,43.98051545]
[1742452883136,0.05148437,134.05,134.04,7.4603]
[1742452886641,0.05148437,134.05,134.04,24.28690638]
[1742452887436,8.437e-05,134.05,134.04,24.28690638]
[1742452889333,27.06,134.12,134.04,24.28660638]
[1742452889642,27.06,134.12,134.07,16.82660638]
[1742452890442,0.05058307,134.11,134.1,7.4566]
[1742452891139,0.05058307,134.11,134.09,7.4572]
[1742452891339,0.05058307,134.11,134.08,27.08730002]
[1742452891541,0.05058307,134.11,134.09,7.4574]
[1742452892039,0.05058307,134.11,134.08,27.08730002]
[1742452892241,0.05058307,134.11,134.08,34.54520002]
[1742452892541,0.05058307,134.11,134.08,27.08730002]
[1742452893245,0.05058307,134.11,134.08,0.04730002]
[1742452893445,27.0,134.1,134.08,0.04730002]
[1742452893743,43.82660638,134.1,134.03,43.82660638]
[1742452894148,7.458,134.08,134.04,7.4599]
[1742452894449,43.82660638,134.1,134.03,16.82660638]
[1742452894642,0.05733101,134.07,134.04,0.05423131]
[1742452895451,0.05733101,134.07,134.05,7.4594]
[1742452896354,0.05733101,134.07,134.04,0.05423131]
[1742452896851,7.51613101,134.07,134.04,0.05423131]
[1742452897856,7.51613101,134.07,134.04,7.51423131]
[1742452898155,0.05733101,134.07,134.04,7.51423131]
[1742452898353,0.05733101,134.07,134.04,0.05423131]
[1742452898654,0.05733101,134.07,133.99,43.80660638]
[1742452898655,16.82660638,134.06,133.99,43.80660638]
[1742452898856,7.4608,134.04,134.0,7.4624]
[1742452899050,16.82660638,134.06,133.99,43.80660638]
[1742452899450,7.4612,134.03,133.99,43.80660638]
[1742452899849,0.05501321,134.02,134.0,0.05542412]
[1742452901253,0.05501321,134.02,134.01,7.4619]
[1742452903661,0.05501321,134.02,134.0,7.51772412]
[1742452904955,0.05501321,134.02,134.0,0.05542412]
[1742452905161,7.51651321,134.02,134.0,0.05542412]
[1742452905663,0.05501321,134.02,134.0,7.51782412]
[1742452906362,0.05501321,134.02,134.01,7.4619]
[1742452907254,0.05501321,134.02,134.0,0.05542412]
[1742452907255,0.05501321,134.02,134.0,7.51772412]
[1742452907859,0.05501321,134.02,134.0,0.05542412]
[1742452908763,0.05501321,134.02,134.0,7.51762412]
[1742452909452,0.05501321,134.02,134.0,0.05542412]
[1742452910162,0.05501321,134.02,134.0,7.51752412]
[1742452911368,0.05501321,134.02,134.01,10.7747631]
[1742452911853,7.51641321,134.02,134.01,10.7747631]
[1742452912363,0.05501321,134.02,134.0,10.83018722]
[1742452913469,7.51641321,134.02,134.0,10.83018722]
[1742452914065,7.4619,134.01,134.0,10.83018722]
[1742452914267,0.05501321,134.02,134.0,10.83018722]
[1742452914868,7.51681321,134.02,134.0,10.83018722]
[1742452915368,0.05501321,134.02,134.0,10.83018722]
[1742452915563,7.4619,134.01,134.0,10.83018722]
[1742452915767,0.05501321,134.02,134.0,10.83018722]
[1742452916769,0.05501321,134.02,134.0,18.29258722]
[1742452917066,0.05501321,134.02,134.0,10.83018722]
[1742452917269,7.51641321,134.02,134.0,10.83018722]
[1742452918768,0.05501321,134.02,134.0,18.29268722]
[1742452920070,0.05501321,134.02,134.01,18.2366631]
[1742452920460,0.05501321,134.02,134.01,10.7747631]
[1742452923068,0.05501321,134.02,134.01,18.2366631]
[1742452923275,0.05501321,134.02,134.01,10.7747631]
[1742452924273,260.8028631,134.08,134.01,10.7747631]
[1742452924472,10.7747631,134.07,134.02,37.5547631]
[1742452924773,10.7747631,134.06,134.02,26.78]
[1742452925072,37.5747631,134.06,134.01,10.7747631]
[1742452925376,0.05144848,134.05,134.02,0.0504625]
[1742452925672,7.4606,134.04,134.02,0.0504625]
[1742452925875,10.82621158,134.05,134.02,0.0504625]
[1742452926575,7.4606,134.04,134.02,0.0504625]
[1742452930477,7.4608,134.03,134.02,0.0504625]
[1742452933478,7.4605,134.04,134.02,0.0504625]
[1742452934684,7.4608,134.03,134.02,0.0504625]
[1742452935087,10.7747631,134.03,133.98,34.2032]
[1742452935279,10.7747631,134.02,133.98,7.4632]
[1742452935587,7.462,134.01,133.98,7.4632]
[1742452936087,10.7747631,134.02,133.98,0.04733318]
[1742452936282,10.82658051,134.01,133.98,0.04733318]
[1742452936883,7.4628,134.0,133.98,0.04733318]
[1742452937084,10.82658051,134.01,133.98,0.04733318]
[1742452937284,10.7747631,134.0,133.98,0.04733318]
[1742452937586,18.2377631,133.99,133.98,0.04733318]
[1742452938283,7.4641,133.98,133.96,41.17278863]
[1742452938488,37.6147631,133.97,133.96,35.33978863]
[1742452938688,37.6147631,133.97,133.95,106.38324043]
[1742452938885,18.2394631,133.96,133.95,5.24825128]
[1742452940683,18.2394631,133.96,133.94,0.05057182]
[1742452940887,10.7747631,133.95,133.94,0.05057182]
[1742452941092,18.2400631,133.95,133.94,0.05057182]
[1742452941479,10.7747631,133.95,133.94,0.05057182]
[1742452942082,37.67128745,133.97,133.94,0.05057182]
[1742452942585,37.67128745,133.97,133.94,7.51617182]
[1742452943090,37.67128745,133.97,133.94,0.05057182]
[1742452943891,37.67128745,133.97,133.94,7.51617182]
[1742452944190,37.67128745,133.97,133.94,0.05057182]
[1742452944691,18.29548745,133.97,133.94,0.05057182]
[1742452944989,46.05548745,133.97,133.94,0.05057182]
[1742452945887,38.59128745,133.97,133.94,0.05057182]
[1742452946288,0.05652435,133.97,133.96,7.4647]
[1742452946483,0.05652435,133.97,133.95,10.7747631]
[1742452946688,0.05652435,133.97,133.96,10.7747631]
[1742452946891,0.05652435,133.97,133.96,18.2394631]
[1742452947192,27.78,134.0,133.97,10.7747631]
[1742452947890,35.2425,134.0,133.97,10.7747631]
[1742452948086,27.83707311,134.0,133.97,7.51565825]
[1742452948492,27.83707311,134.0,133.97,0.05165825]
[1742452949192,35.29987311,134.0,133.97,0.05165825]
[1742452949793,27.83707311,134.0,133.97,7.51575825]
[1742452949992,27.83707311,134.0,133.97,10.82642135]
[1742452950392,0.05707311,134.0,133.97,10.82642135]
[1742452950992,0.05707311,134.0,133.99,18.2377631]
[1742452954393,0.05707311,134.0,133.99,10.7747631]
[1742452956000,0.05707311,134.0,133.98,10.7747631]
[1742452956299,0.05707311,134.0,133.97,10.82642135]
[1742452956998,0.05707311,134.0,133.97,0.05165825]
[1742452957600,7.51987311,134.0,133.97,0.05165825]
[1742452957996,0.05707311,134.0,133.97,0.05165825]
[1742452958193,0.05707311,134.0,133.97,7.51575825]
[1742452958397,0.05707311,134.0,133.97,0.05165825]
[1742452958702,7.51967311,134.0,133.97,0.05165825]
[1742452959102,10.83183621,134.0,133.97,0.05165825]
[1742452959302,10.7747631,133.99,133.97,0.05165825]
[1742452959496,7.4636,133.98,133.97,0.05165825]
[1742452960003,18.2380631,133.99,133.97,0.05165825]
[1742452960203,10.7747631,133.99,133.97,0.05165825]
[1742452960399,10.83183621,134.0,133.97,0.05165825]
[1742452960599,0.05707311,134.0,133.98,7.4635]
[1742452960799,0.05707311,134.0,133.97,0.05165825]
[1742452961211,7.51967311,134.0,133.97,7.51565825]
[1742452961404,7.51967311,134.0,133.97,0.05165825]
[1742452961804,7.4631,133.99,133.97,0.05165825]
[1742452962200,10.83183621,134.0,133.97,0.05165825]
[1742452962406,7.4634,133.99,133.97,0.05165825]
[1742452962809,7.4636,133.98,133.97,0.05165825]
[1742452964511,7.4633,133.99,133.97,0.05165825]
[1742452966518,18.29453621,134.0,133.97,7.51585825]
[1742452966711,0.05707311,134.0,133.97,0.05165825]
[1742452967113,7.4631,133.99,133.97,0.05165825]
[1742452967320,0.05707311,134.0,133.97,0.05165825]
[1742452967721,7.51977311,134.0,133.97,7.51545825]
[1742452968020,7.51977311,134.0,133.97,18.29022135]
[1742452968415,0.05707311,134.0,133.98,7.4636]
[1742452968720,0.05707311,134.0,133.97,10.82642135]
[1742452969221,7.51967311,134.0,133.97,18.29042135]
[1742452969522,10.83183621,134.0,133.97,0.05165825]
[1742452969710,7.463,133.99,133.97,0.05165825]
[1742452970922,7.4636,133.98,133.97,0.05165825]
[1742452971921,7.4633,133.99,133.97,0.05165825]
[1742452972427,18.2383631,133.98,133.97,0.05165825]
[1742452972826,45.8183631,133.98,133.97,0.05165825]
[1742452975420,45.8183631,133.98,133.91,57.0221631]
[1742452975421,38.3547631,133.98,133.91,7.3028]
[1742452975626,10.7747631,133.92,133.88,10.7747631]
[1742452975821,38.4547631,133.94,133.9,10.7747631]
[1742452976219,45.9207631,133.94,133.9,18.2424631]
[1742452976515,45.9207631,133.94,133.91,0.0511532]
[1742452976516,38.4547631,133.94,133.91,0.0511532]
[1742452976725,7.52324497,133.93,133.91,0.0511532]
[1742452977314,0.05654497,133.93,133.91,0.0511532]
[1742452981927,0.05654497,133.93,133.91,7.5185532]
[1742452982128,0.05654497,133.93,133.91,0.0511532]
[1742452982531,0.05654497,133.93,133.91,7.5184532]
[1742452983027,0.05654497,133.93,133.91,10.8259163]
[1742452983234,0.05654497,133.93,133.92,7.4669]
[1742452983532,0.05654497,133.93,133.91,17.9604163]
[1742452983933,27.6,133.96,133.92,10.7747631]
[1742452984229,10.7747631,133.97,133.93,10.7747631]
[1742452984230,27.62,133.97,133.93,10.7747631]
[1742452984429,27.62,133.97,133.94,18.2400631]
[1742452984631,10.7747631,133.99,133.95,10.7747631]
[1742452984829,27.62,133.99,133.96,18.2392631]
[1742452985024,264.5376631,134.0,133.96,10.7747631]
[1742452985228,0.05429949,133.99,133.96,10.82769025]
[1742452985741,0.05429949,133.99,133.96,18.29199025]
[1742452986032,0.05429949,133.99,133.96,10.82769025]
[1742452986228,7.51739949,133.99,133.96,10.82769025]
[1742452986433,7.51739949,133.99,133.96,0.05292715]
[1742452986929,7.4637,133.98,133.96,0.05292715]
[1742452987531,18.29236259,133.99,133.96,0.05292715]
[1742452987836,10.82906259,133.99,133.96,0.05292715]
[1742452988337,7.4639,133.98,133.96,0.05292715]
[1742452988727,7.4642,133.97,133.96,0.05292715]
[1742452989641,10.82906259,133.99,133.96,0.05292715]
[1742452990044,18.29236259,133.99,133.96,0.05292715]
[1742452991143,10.82906259,133.99,133.96,7.51742715]
[1742452991641,18.29236259,133.99,133.96,0.05292715]
[1742452992035,7.4642,133.97,133.96,0.05292715]
[1742452992431,18.2389631,133.97,133.96,0.05292715]
[1742452992842,45.8589631,133.97,133.96,0.05292715]
[1742452995350,38.3947631,133.97,133.96,0.05292715]
[1742452997449,45.8589631,133.97,133.96,0.05292715]
[1742453000952,38.3947631,133.97,133.96,0.05292715]
[1742453001453,27.62,133.97,133.96,0.05292715]
[1742453002352,35.0842,133.97,133.96,0.05292715]
[1742453002557,45.8589631,133.97,133.96,0.05292715]
[1742453002963,38.3947631,133.97,133.96,0.05292715]
[1742453003262,10.7747631,133.97,133.96,0.05292715]
[1742453004151,0.05429949,133.99,133.96,0.05292715]
[1742453004356,38.32906259,133.99,133.96,0.05292715]
[1742453004556,10.82906259,133.99,133.96,0.05292715]
[1742453004753,10.82906259,133.99,133.97,7.4642]
[1742453004962,10.82906259,133.99,133.96,0.05292715]
[1742453005157,10.82906259,133.99,133.96,5.77232715]
[1742453005463,7.51739949,133.99,133.96,13.23672715]
[1742453005658,0.05429949,133.99,133.96,5.77232715]
[1742453005857,0.05429949,133.99,133.97,7.4641]
[1742453006260,0.05429949,133.99,133.96,16.54709025]
[1742453007365,0.05429949,133.99,133.97,7.4638]
[1742453007665,0.05429949,133.99,133.96,5.77232715]
[1742453008058,7.51759949,133.99,133.96,13.23672715]
[1742453008460,0.05429949,133.99,133.96,5.77232715]
[1742453009165,0.05429949,133.99,133.96,16.54709025]
[1742453009965,0.05429949,133.99,133.98,7.4636]
[1742453010760,0.05429949,133.99,133.96,5.77232715]
[1742453010967,0.05429949,133.99,133.96,16.54709025]
[1742453011660,0.05429949,133.99,133.97,7.4639]
[1742453013367,0.05429949,133.99,133.96,24.01159025]
[1742453013566,7.51739949,133.99,133.96,24.01159025]
[1742453013766,0.05429949,133.99,133.96,16.54709025]
[1742453014165,0.05429949,133.99,133.96,5.77232715]
[1742453014462,10.7747631,133.98,133.96,5.77232715]
[1742453015368,18.2386631,133.98,133.96,5.77232715]
[1742453015870,10.7747631,133.98,133.96,5.77232715]
[1742453016078,10.7747631,133.97,133.96,5.77232715]
[1742453016283,10.7747631,133.98,133.96,5.77232715]
[1742453016774,7.4638,133.98,133.96,5.77232715]
[1742453017569,18.29236259,133.99,133.96,13.23702715]
[1742453018383,7.51759949,133.99,133.96,13.23702715]
[1742453019780,7.4636,133.98,133.96,13.23702715]
[1742453020181,7.51749949,133.99,133.96,13.23702715]
[1742453022781,7.51749949,133.99,133.96,15.95332715]
[1742453022981,0.05429949,133.99,133.97,10.7747631]
[1742453023179,10.7747631,134.03,133.98,10.7747631]
[1742453023377,10.7747631,134.02,133.98,10.7747631]
[1742453023578,7.462,134.01,133.98,7.4632]
[1742453024283,18.28410819,134.01,133.98,7.51913421]
[1742453025884,160.93020278,133.99,133.98,0.05593421]
[1742453027487,168.39320278,133.99,133.98,0.05593421]
[1742453029089,160.93020278,133.99,133.98,0.05593421]
[1742453030090,168.39320278,133.99,133.98,0.05593421]
[1742453030985,160.93020278,133.99,133.98,0.05593421]
[1742453031793,168.39320278,133.99,133.98,0.05593421]
[1742453032793,160.93020278,133.99,133.98,0.05593421]
[1742453032990,11.76350279,133.99,133.98,10.83069731]
[1742453033191,0.04734509,134.01,133.98,10.83069731]
[1742453033387,0.04734509,134.01,133.99,37.9747631]
[1742453034092,0.04734509,134.01,133.99,27.2]
[1742453035091,0.04734509,134.01,133.99,34.6626]
[1742453035291,0.04734509,134.01,133.99,27.2]
[1742453036189,0.04734509,134.01,134.0,7.4625]
[1742453036700,0.04734509,134.01,133.99,34.6628]
[1742453036992,0.04734509,134.01,133.99,27.2]
[1742453037188,0.04734509,134.01,134.0,7.4625]
[1742453037796,0.04734509,134.01,133.99,45.4375631]
[1742453039497,0.04734509,134.01,134.0,7.4625]
[1742453040799,0.04734509,134.01,134.0,18.2372631]
[1742453041894,4.509e-05,134.01,134.0,18.2372631]
[1742453043994,4.509e-05,134.01,134.0,10.7747631]
[1742453044196,4.509e-05,134.01,134.0,27.06]